fUST/lending_fUST_20250603
["ID","MTS","AMOUNT","RATE_DAILY","PERIOD"]
[363907714,1748920241064,-440.0,0.0001726,2]
[363907715,1748920241074,-440.0,0.0001726,2]
[363907716,1748920241083,-766.52047856,0.00017383,2]
[363907717,1748920241094,-596.28673191,0.00017408,2]
[363907718,1748920241104,-440.0,0.00017534,2]
[363907719,1748920241114,-440.0,0.00017534,2]
[363907720,1748920241124,-440.0,0.00017534,2]
[363907721,1748920241134,-405.93106617,0.00017534,2]
[363907722,1748920241144,-440.0,0.00017534,2]
[363907723,1748920241154,-676.86,0.00017534,2]
[363907724,1748920241164,-440.0,0.00017534,2]
[363907725,1748920241175,-440.0,0.00017534,2]
[363907726,1748920241187,-440.0,0.00017534,2]
[363907727,1748920241197,-440.0,0.00017534,2]
[363907728,1748920241207,-390.0,0.00017534,2]
[363907729,1748920241217,-440.0,0.00017534,2]
[363907730,1748920241227,-440.0,0.00017534,2]
[363907731,1748920241236,-440.0,0.00017534,2]
[363907732,1748920241246,-430.0,0.00017534,2]
[363907733,1748920241256,-440.0,0.00017534,2]
[363907734,1748920241266,-440.0,0.00017534,2]
[363907735,1748920241276,-440.0,0.00017534,2]
[363907736,1748920241286,-440.0,0.00017534,2]
[363907737,1748920241296,-440.0,0.00017534,2]
[363907738,1748920241306,-430.0,0.00017534,2]
[363907739,1748920241316,-720.73,0.00017534,2]
[363907740,1748920241326,-440.0,0.00017534,2]
[363907741,1748920241336,-440.0,0.00017534,2]
[363907742,1748920241346,-766.52047856,0.00017624,2]
[363907743,1748920241355,-440.0,0.00017808,2]
[363907744,1748920241368,-151.84,0.00017808,2]
[363907745,1748920241378,-440.0,0.00017808,2]
[363907746,1748920241388,-440.0,0.00017808,2]
[363907747,1748920241398,-676.86,0.00017808,2]
[363907748,1748920241409,-440.0,0.00017808,2]
[363907749,1748920241419,-164.04,0.00017808,2]
[363907750,1748920241429,-440.0,0.00017808,2]
[363907751,1748920241440,-440.0,0.00017808,2]
[363907752,1748920241450,-440.0,0.00017808,2]
[363907753,1748920241460,-440.0,0.00017808,2]
[363907754,1748920241470,-440.0,0.00017808,2]
[363907755,1748920241480,-440.0,0.00017808,2]
[363907756,1748920241490,-440.0,0.00017808,2]
[363907757,1748920241500,-421.68,0.00017808,2]
[363907758,1748920241510,-440.0,0.00017808,2]
[363907759,1748920241520,-423.57,0.00017808,2]
[363907760,1748920241530,-720.73,0.00017808,2]
[363907761,1748920241540,-285.56,0.00017808,2]
[363907762,1748920241550,-440.0,0.00017808,2]
[363907763,1748920241560,-766.52047856,0.00017866,2]
[363907764,1748920241570,-300.0,0.00017953,2]
[363907765,1748920241580,-440.0,0.00018082,2]
[363907766,1748920241590,-440.0,0.00018082,2]
[363907767,1748920241600,-440.0,0.00018082,2]
[363907768,1748920241609,-676.86,0.00018082,2]
[363907769,1748920241619,-440.0,0.00018082,2]
[363907770,1748920241629,-440.0,0.00018082,2]
[363907771,1748920241638,-440.0,0.00018082,2]
[363907772,1748920241648,-440.0,0.00018082,2]
[363907773,1748920241657,-377.32,0.00018082,2]
[363907774,1748920241669,-440.0,0.00018082,2]
[363907775,1748920241678,-353.56,0.00018082,2]
[363907776,1748920241690,-387.56,0.00018082,2]
[363907777,1748920241700,-440.0,0.00018082,2]
[363907778,1748920241710,-720.73,0.00018082,2]
[363907779,1748920241720,-440.0,0.00018082,2]
[363907780,1748920241729,-766.52047856,0.00018107,2]
[363907781,1748920241738,-479.05875421,0.0001819,2]
[363907782,1748920241748,-766.52047856,0.00018348,2]
[363907783,1748920241758,-440.0,0.00018356,2]
[363907784,1748920241767,-440.0,0.00018356,2]
[363907785,1748920241778,-440.0,0.00018356,2]
[363907786,1748920241787,-676.86,0.00018356,2]
[363907787,1748920241797,-440.0,0.00018356,2]
[363907788,1748920241807,-440.0,0.00018356,2]
[363907789,1748920241816,-440.0,0.00018356,2]
[363907790,1748920241826,-440.0,0.00018356,2]
[363907791,1748920241835,-440.0,0.00018356,2]
[363907792,1748920241845,-440.0,0.00018356,2]
[363907793,1748920241855,-720.73,0.00018356,2]
[363907794,1748920241865,-440.0,0.00018356,2]
[363907795,1748920241875,-12670.76136593,0.00018456,2]
[363907796,1748920241885,-229.42821335,0.00018456,2]
[363907797,1748920241895,-160.0,0.00018456,2]
[363907798,1748920241905,-160.0,0.00018456,2]
[363907799,1748920241915,-423.63107087,0.00018456,2]
[363907800,1748920241925,-842.5625,0.00018456,2]
[363907801,1748920241936,-212.86879254,0.00018456,2]
[363907802,1748920241946,-160.0,0.00018456,2]
[363907803,1748920241957,-596.28673191,0.00018477,2]
[363907804,1748920241967,-766.52047856,0.0001859,2]
[363907805,1748920241976,-440.0,0.0001863,2]
[363907806,1748920241986,-477.67521261,0.0001863,2]
[363907807,1748920241997,-440.0,0.0001863,2]
[363907808,1748920242007,-676.86,0.0001863,2]
[363907809,1748920242017,-440.0,0.0001863,2]
[363907810,1748920242027,-440.0,0.0001863,2]
[363907811,1748920242041,-440.0,0.0001863,2]
[363907812,1748920242051,-440.0,0.0001863,2]
[363907813,1748920242061,-440.0,0.0001863,2]
[363907814,1748920242072,-183.81,0.0001863,2]
[363907815,1748920242082,-720.73,0.0001863,2]
[363907816,1748920242092,-440.0,0.0001863,2]
[363907817,1748920242102,-766.52047856,0.00018831,2]
[363907818,1748920242113,-2051.60625724,0.000189,2]
[363907819,1748920242123,-340.0,0.00018904,2]
[363907820,1748920242134,-440.0,0.00018904,2]
[363907821,1748920242143,-676.86,0.00018904,2]
[363907822,1748920242153,-440.0,0.00018904,2]
[363907823,1748920242162,-440.0,0.00018904,2]
[363907824,1748920242173,-440.0,0.00018904,2]
[363907825,1748920242184,-293.40482511,0.00018904,2]
[363907826,1748920242194,-440.0,0.00018904,2]
[363907827,1748920242204,-720.73,0.00018904,2]
[363907828,1748920242215,-471.8546586,0.00018904,2]
[363907829,1748920242225,-766.52047856,0.00019072,2]
[363907830,1748920242234,-440.0,0.00019178,2]
[363907831,1748920242244,-440.0,0.00019178,2]
[363907832,1748920242253,-440.0,0.00019178,2]
[363907833,1748920242263,-440.0,0.00019178,2]
[363907834,1748920242273,-440.0,0.00019178,2]
[363907835,1748920242283,-389.3903776,0.00019178,2]
[363907836,1748920242293,-440.0,0.00019178,2]
[363907837,1748920242306,-676.86,0.00019178,2]
[363907838,1748920242317,-440.0,0.00019178,2]
[363907839,1748920242328,-440.0,0.00019178,2]
[363907840,1748920242338,-440.0,0.00019178,2]
[363907841,1748920242348,-440.0,0.00019178,2]
[363907842,1748920242358,-720.73,0.00019178,2]
[363907843,1748920242371,-193.523419,0.00019178,2]
[363907844,1748920242382,-766.52047856,0.00019314,2]
[363907845,1748920242391,-440.0,0.00019452,2]
[363907847,1748920242401,-676.86,0.00019452,2]
[363907849,1748920242411,-515.11276607,0.00019452,2]
[363907851,1748920242421,-440.0,0.00019452,2]
[363907852,1748920242432,-453.86518564,0.00019452,2]
[363907853,1748920242442,-440.0,0.00019452,2]
[363907855,1748920242452,-720.73,0.00019452,2]
[363907857,1748920242462,-479.05875421,0.00019493,2]
[363907858,1748920242472,-596.28673191,0.00019547,2]
[363907859,1748920242482,-766.52047856,0.00019555,2]
[363907860,1748920242491,-336.05,0.00019625,2]
[363907861,1748920242502,-440.0,0.00019726,2]
[363907862,1748920242512,-676.86,0.00019726,2]
[363907863,1748920242521,-440.0,0.00019726,2]
[363907864,1748920242532,-440.0,0.00019726,2]
[363907865,1748920242542,-720.73,0.00019726,2]
[363907866,1748920242553,-766.52047856,0.00019797,2]
[363907869,1748920242564,-700.0,0.00019964,2]
[363907870,1748920242574,-440.0,0.0002,2]
[363907871,1748920242585,-676.86,0.0002,2]
[363907872,1748920242597,-440.0,0.0002,2]
[363907873,1748920242608,-440.0,0.0002,2]
[363907874,1748920242618,-23433.22683995,0.0002,2]
[363907875,1748920242628,-720.73,0.0002,2]
[363907876,1748920242639,-766.52047856,0.00020038,2]
[363907877,1748920242649,-188.479756,0.00020187,2]
[363907878,1748920242658,-440.0,0.00020273,2]
[363907879,1748920242668,-676.86,0.00020273,2]
[363907880,1748920242679,-239.96547772,0.00020273,2]
[363907881,1748920242689,-440.0,0.00020273,2]
[363907882,1748920242699,-720.73,0.00020273,2]
[363907883,1748920242711,-766.52047856,0.00020279,3]
[363907885,1748920242720,-766.52047856,0.00020521,3]
[363907887,1748920242730,-440.0,0.00020547,2]
[363907889,1748920242739,-676.86,0.00020547,2]
[363907891,1748920242750,-154.574,0.00020547,2]
[363907892,1748920242760,-440.0,0.00020547,2]
[363907894,1748920242770,-720.73,0.00020547,2]
[363907896,1748920242779,-596.28673191,0.00020616,2]
[363907898,1748920242788,-766.52047856,0.00020762,3]
[363907900,1748920242798,-479.05875421,0.00020797,2]
[363907902,1748920242807,-405.0,0.00020799,2]
[363907904,1748920242817,-387.29189409,0.00020821,2]
[363907906,1748920242826,-676.86,0.00020821,2]
[363907907,1748920242835,-440.0,0.00020821,2]
[363907908,1748920242844,-720.73,0.00020821,2]
[363907909,1748920242854,-207.4,0.0002094,2]
[363907910,1748920242863,-152.37664978,0.0002094,2]
[363907911,1748920242873,-500.0,0.0002094,2]
[363907912,1748920242882,-500.0,0.0002094,2]
[363907913,1748920242893,-500.0,0.0002094,2]
[363907914,1748920242903,-500.0,0.0002094,2]
[363907915,1748920242913,-175.81648314,0.0002094,2]
[363907916,1748920242922,-500.0,0.0002094,2]
[363907917,1748920242932,-500.0,0.0002094,2]
[363907918,1748920242941,-5000.0,0.0002094,2]
[363907919,1748920242951,-500.0,0.0002094,2]
[363907920,1748920242962,-500.0,0.0002094,2]
[363907921,1748920242972,-500.0,0.0002094,2]
[363907922,1748920242982,-3898.2834867,0.0002094,2]
[363907923,1748920242992,-500.0,0.0002094,2]
[363907924,1748920243003,-500.0,0.0002094,2]
[363907925,1748920243047,-500.0,0.0002094,2]
[363907926,1748920243056,-500.0,0.0002094,2]
[363907927,1748920243065,-500.0,0.0002094,2]
[363907928,1748920243074,-500.0,0.0002094,2]
[363907930,1748920243084,-3000.0,0.00021,2]
[363907931,1748920243094,-151.0,0.00021,3]
[363907932,1748920243103,-766.52047856,0.00021003,4]
[363907933,1748920243114,-3000.0,0.0002101,2]
[363907934,1748920243123,-7955.75,0.0002101,10]
[363907935,1748920243135,-13889.09,0.0002101,10]
[363907936,1748920243146,-11574.24,0.0002101,10]
[363907937,1748920243155,-3000.0,0.0002102,2]
[363907938,1748920243165,-3000.0,0.0002103,2]
[363907939,1748920243175,-3000.0,0.0002104,2]
[363907940,1748920243184,-3000.0,0.0002105,2]
[363907941,1748920243194,-3000.0,0.0002106,2]
[363907942,1748920243204,-700.0,0.0002106,2]
[363907943,1748920243214,-4504.130147,0.0002107,2]
[363907944,1748920243225,-676.86,0.00021095,2]
[363907945,1748920243235,-561.21128915,0.00021095,2]
[363907946,1748920243244,-720.73,0.00021095,2]
[363907947,1748920243254,-1000.0,0.00021178,5]
[363907948,1748920243264,-766.52047856,0.00021245,4]
[363907949,1748920243273,-676.86,0.00021369,2]
[363907950,1748920243283,-720.73,0.00021369,2]
[363907951,1748920243293,-766.52047856,0.00021486,5]
[363907952,1748920243303,-5000.0,0.00021488,2]
[363907953,1748920243313,-151.0,0.000216,4]
[363907954,1748920243323,-676.86,0.00021643,2]
[363907955,1748920243332,-720.73,0.00021643,2]
[363907956,1748920243341,-150.497,0.00021649,2]
[363907957,1748920243351,-150.0,0.00021649,2]
[363907958,1748920243363,-150.0,0.00021649,2]
[363907959,1748920243373,-965.62,0.00021649,2]
[363907960,1748920243383,-709.0,0.00021649,2]
[363907961,1748920243392,-2227.0,0.00021649,2]
[363907962,1748920243402,-596.28673191,0.00021686,2]
[363907963,1748920243413,-766.52047856,0.00021728,5]
[363907964,1748920243422,-883.574086,0.00021748,3]
[363907965,1748920243433,-1000.0,0.000218,5]
[363907966,1748920243444,-132282.08357743,0.00021905,2]
[363907967,1748920243467,-1251.3828315,0.00021905,2]
[363907968,1748920243479,-2504.31,0.00021905,2]
[363907969,1748920243516,-458.66347611,0.00021905,2]
[363907970,1748920243528,-4905.2488532,0.00021905,2]
[363907971,1748920243540,-4440.0,0.00021905,2]
[363907972,1748920243552,-791.3323053,0.00021905,2]
[363907973,1748920243563,-760.70198306,0.00021905,2]
[363907974,1748920243574,-1070.11454301,0.00021905,2]
[363907975,1748920243586,-6362.96252423,0.00021905,2]
[363907976,1748920243714,-2792.33601125,0.00021905,2]
[363907983,1748920245861,-582.54,0.00016438,2]
[363907984,1748920245871,-3271.92391945,0.00021905,2]
[363907985,1748920245912,-19823.28103939,0.00021905,2]
[363907986,1748920245968,-2529.35569277,0.00021905,2]
[363907987,1748920245979,-1424.35250129,0.00021905,2]
[363907991,1748920246022,-30790.81737397,0.00021905,2]
[363908004,1748920852489,10000.0,0.0002,120]
[363908006,1748920974083,188.525705,0.00013699,2]
[363908007,1748921016991,1207.04907668,0.0001552,2]
[363908011,1748921130050,1000.0,0.00015507,2]
[363908012,1748921130516,1000.0,0.00015507,2]
[363908013,1748921130787,1000.0,0.00015507,2]
[363908014,1748921131060,1000.0,0.00015507,2]
[363908015,1748921131341,331.16888922,0.00015507,2]
[363908016,1748921131370,668.83111078,0.00015507,2]
[363908017,1748921131611,1000.0,0.00015507,2]
[363908018,1748921131885,1000.0,0.00015507,2]
[363908019,1748921132200,1000.0,0.00015507,2]
[363908020,1748921132520,1000.0,0.00015507,2]
[363908021,1748921132811,1000.0,0.00015507,2]
[363908026,1748921173247,1000.0,0.00015507,2]
[363908027,1748921173553,1000.0,0.00015507,2]
[363908028,1748921173844,1000.0,0.00015507,2]
[363908029,1748921174262,1000.0,0.00015507,2]
[363908030,1748921174610,1000.0,0.00015507,2]
[363908031,1748921174905,1000.0,0.00015507,2]
[363908032,1748921175299,1000.0,0.00015507,2]
[363908033,1748921175504,160.10982047,0.00015507,2]
[363908034,1748921175529,839.89017953,0.00015507,2]
[363908035,1748921175832,1000.0,0.00015507,2]
[363908040,1748921317522,-601.88680068,0.00016337,2]
[363908041,1748921317544,-617.11503159,0.00016338,2]
[363908042,1748921317567,-27.49816773,0.00016435,2]
[363908057,1748921422554,2344.1478022,0.00015438,2]
[363908102,1748921432034,-160.10982047,0.000157,2]
[363908103,1748921432044,-300.0,0.00016435,2]
[363908104,1748921432054,-300.0,0.00016435,2]
[363908105,1748921432063,-300.0,0.00016435,2]
[363908106,1748921432072,-1200.0,0.00016435,2]
[363908107,1748921432082,-300.0,0.00016436,2]
[363908108,1748921432092,-46787.65141065,0.00016437,2]
[363908109,1748921432101,-500.0,0.00016437,2]
[363908110,1748921432111,-500.0,0.00016437,2]
[363908111,1748921432120,-500.0,0.00016437,2]
[363908112,1748921432130,-500.0,0.00016437,2]
[363908113,1748921432139,-500.0,0.00016437,2]
[363908114,1748921432149,-500.0,0.00016437,2]
[363908115,1748921432158,-500.0,0.00016437,2]
[363908116,1748921432167,-500.0,0.00016437,2]
[363908117,1748921432177,-500.0,0.00016437,2]
[363908118,1748921432187,-500.0,0.00016437,2]
[363908119,1748921432197,-500.0,0.00016437,2]
[363908120,1748921432207,-525.42007528,0.00016437,2]
[363908121,1748921432216,-500.0,0.00016437,2]
[363908122,1748921432226,-204.50296139,0.00016437,2]
[363908123,1748921432235,-498.49663397,0.00016437,2]
[363908124,1748921432248,-500.0,0.00016437,2]
[363908125,1748921432257,-500.0,0.00016437,2]
[363908126,1748921432267,-500.0,0.00016437,2]
[363908127,1748921432276,-500.0,0.00016437,2]
[363908128,1748921432286,-500.0,0.00016437,2]
[363908129,1748921432296,-615.4244749,0.00016437,2]
[363908130,1748921432305,-500.0,0.00016437,2]
[363908131,1748921432315,-500.0,0.00016437,2]
[363908132,1748921432324,-500.0,0.00016437,2]
[363908133,1748921432334,-500.0,0.00016437,2]
[363908134,1748921432343,-500.0,0.00016437,2]
[363908135,1748921432353,-500.0,0.00016437,2]
[363908136,1748921432363,-500.0,0.00016437,2]
[363908137,1748921432373,-500.0,0.00016437,2]
[363908138,1748921432388,-500.0,0.00016437,2]
[363908139,1748921432403,-500.0,0.00016437,2]
[363908140,1748921432413,-500.0,0.00016437,2]
[363908141,1748921432423,-500.0,0.00016437,2]
[363908142,1748921432434,-500.0,0.00016437,2]
[363908143,1748921432444,-500.0,0.00016437,2]
[363908144,1748921432455,-500.0,0.00016437,2]
[363908145,1748921432466,-500.0,0.00016437,2]
[363908146,1748921432477,-500.0,0.00016437,2]
[363908147,1748921432488,-500.0,0.00016437,2]
[363908148,1748921432498,-500.0,0.00016437,2]
[363908149,1748921432509,-500.0,0.00016437,2]
[363908150,1748921432519,-500.0,0.00016437,2]
[363908151,1748921432530,-500.0,0.00016437,2]
[363908152,1748921432540,-242.19534454,0.00016437,2]
[363908153,1748921432551,-500.0,0.00016437,2]
[363908154,1748921432563,-500.0,0.00016437,2]
[363908155,1748921432573,-500.0,0.00016437,2]
[363908156,1748921432583,-500.0,0.00016437,2]
[363908157,1748921432593,-500.0,0.00016437,2]
[363908158,1748921432604,-500.0,0.00016437,2]
[363908159,1748921432614,-500.0,0.00016437,2]
[363908160,1748921432624,-500.0,0.00016437,2]
[363908161,1748921432635,-375.6287265,0.00016437,2]
[363908162,1748921432645,-500.0,0.00016437,2]
[363908163,1748921432657,-500.0,0.00016437,2]
[363908164,1748921432668,-500.0,0.00016437,2]
[363908165,1748921432679,-169.49111947,0.00016437,2]
[363908166,1748921432688,-499.99999999,0.00016437,2]
[363908167,1748921432698,-430.0,0.00016438,2]
[363908168,1748921432708,-430.0,0.00016438,2]
[363908169,1748921432719,-401.7945903,0.00016438,2]
[363908170,1748921432730,-431.4009782,0.00016438,2]
[363908171,1748921432743,-430.0,0.00016438,2]
[363908172,1748921432754,-430.0,0.00016438,2]
[363908173,1748921432764,-430.0,0.00016438,2]
[363908174,1748921432773,-440.0,0.00016438,2]
[363908175,1748921432785,-440.0,0.00016438,2]
[363908176,1748921432796,-440.0,0.00016438,2]
[363908177,1748921432808,-440.0,0.00016438,2]
[363908178,1748921432820,-282.06880575,0.00016438,2]
[363908179,1748921432830,-440.0,0.00016438,2]
[363908180,1748921432841,-462.94460843,0.00016438,2]
[363908181,1748921432851,-383.02709817,0.00016438,2]
[363908182,1748921432862,-472.93453681,0.00016438,2]
[363908183,1748921432872,-440.0,0.00016438,2]
[363908184,1748921432882,-440.0,0.00016438,2]
[363908185,1748921432892,-535.40509036,0.00016438,2]
[363908186,1748921432902,-454.74573656,0.00016438,2]
[363908187,1748921432912,-430.0,0.00016438,2]
[363908188,1748921432922,-430.0,0.00016438,2]
[363908189,1748921432932,-440.0,0.00016438,2]
[363908190,1748921432942,-430.0,0.00016438,2]
[363908191,1748921432952,-440.0,0.00016438,2]
[363908192,1748921432962,-430.0,0.00016438,2]
[363908193,1748921432972,-440.0,0.00016438,2]
[363908194,1748921432982,-459.73682816,0.00016438,2]
[363908195,1748921432993,-430.0,0.00016438,2]
[363908196,1748921433003,-461.69333702,0.00016438,2]
[363908197,1748921433013,-440.0,0.00016438,2]
[363908198,1748921433025,-430.0,0.00016438,2]
[363908199,1748921433035,-440.0,0.00016438,2]
[363908200,1748921433046,-440.0,0.00016438,2]
[363908201,1748921433056,-440.0,0.00016438,2]
[363908202,1748921433066,-430.0,0.00016438,2]
[363908203,1748921433076,-152.17912101,0.00016438,2]
[363908204,1748921433087,-440.0,0.00016438,2]
[363908205,1748921433096,-440.0,0.00016438,2]
[363908206,1748921433106,-440.0,0.00016438,2]
[363908207,1748921433116,-440.0,0.00016438,2]
[363908208,1748921433127,-430.0,0.00016438,2]
[363908209,1748921433137,-440.0,0.00016438,2]
[363908210,1748921433147,-500.4602774,0.00016438,2]
[363908211,1748921433156,-440.0,0.00016438,2]
[363908212,1748921433166,-440.0,0.00016438,2]
[363908213,1748921433176,-440.0,0.00016438,2]
[363908214,1748921433185,-440.0,0.00016438,2]
[363908215,1748921433195,-432.71006021,0.00016438,2]
[363908216,1748921433206,-440.0,0.00016438,2]
[363908217,1748921433216,-440.0,0.00016438,2]
[363908218,1748921433226,-449.63948808,0.00016438,2]
[363908219,1748921433236,-440.0,0.00016438,2]
[363908220,1748921433248,-408.29398825,0.00016438,2]
[363908221,1748921433258,-440.0,0.00016438,2]
[363908222,1748921433269,-440.0,0.00016438,2]
[363908223,1748921433279,-440.0,0.00016438,2]
[363908224,1748921433289,-443.66559385,0.00016438,2]
[363908225,1748921433300,-431.84595271,0.00016438,2]
[363908226,1748921433310,-431.79363285,0.00016438,2]
[363908227,1748921433320,-440.0,0.00016438,2]
[363908228,1748921433331,-440.0,0.00016438,2]
[363908229,1748921433340,-431.13348392,0.00016438,2]
[363908230,1748921433350,-440.0,0.00016438,2]
[363908231,1748921433360,-440.0,0.00016438,2]
[363908232,1748921433371,-440.0,0.00016438,2]
[363908233,1748921433381,-278.15543846,0.00016438,2]
[363908234,1748921433391,-437.42308816,0.00016438,2]
[363908235,1748921433402,-440.0,0.00016438,2]
[363908236,1748921433412,-347.79695946,0.00016438,2]
[363908237,1748921433422,-262.0986916,0.00016438,2]
[363908238,1748921433432,-440.0,0.00016438,2]
[363908239,1748921433442,-436.85961124,0.00016438,2]
[363908240,1748921433453,-445.58719657,0.00016438,2]
[363908241,1748921433463,-440.0,0.00016438,2]
[363908242,1748921433473,-430.0,0.00016438,2]
[363908243,1748921433484,-432.41560209,0.00016438,2]
[363908244,1748921433495,-430.0,0.00016438,2]
[363908245,1748921433506,-440.0,0.00016438,2]
[363908246,1748921433516,-494.92698807,0.00016438,2]
[363908247,1748921433527,-440.0,0.00016438,2]
[363908248,1748921433538,-447.23589787,0.00016438,2]
[363908249,1748921433548,-440.0,0.00016438,2]
[363908250,1748921433558,-442.72484457,0.00016438,2]
[363908251,1748921433567,-440.0,0.00016438,2]
[363908252,1748921433578,-440.0,0.00016438,2]
[363908253,1748921433588,-462.10048665,0.00016438,2]
[363908254,1748921433598,-430.0,0.00016438,2]
[363908255,1748921433608,-440.0,0.00016438,2]
[363908256,1748921433618,-440.0,0.00016438,2]
[363908257,1748921433627,-440.0,0.00016438,2]
[363908258,1748921433637,-436.24720046,0.00016438,2]
[363908259,1748921433647,-440.0,0.00016438,2]
[363908260,1748921433657,-440.0,0.00016438,2]
[363908261,1748921433667,-432.81513853,0.00016438,2]
[363908262,1748921433676,-440.0,0.00016438,2]
[363908263,1748921433686,-449.17462273,0.00016438,2]
[363908264,1748921433696,-438.80370224,0.00016438,2]
[363908265,1748921433706,-440.0,0.00016438,2]
[363908266,1748921433717,-440.0,0.00016438,2]
[363908267,1748921433727,-440.0,0.00016438,2]
[363908268,1748921433737,-151.43856148,0.00016438,2]
[363908269,1748921433750,-439.47906017,0.00016438,2]
[363908270,1748921433761,-440.0,0.00016438,2]
[363908271,1748921433771,-504.36641913,0.00016438,2]
[363908272,1748921433782,-440.0,0.00016438,2]
[363908273,1748921433792,-291.66163473,0.00016438,2]
[363908274,1748921433802,-430.0,0.00016438,2]
[363908275,1748921433812,-452.54088076,0.00016438,2]
[363908276,1748921433823,-522.23225103,0.00016438,2]
[363908277,1748921433833,-440.0,0.00016438,2]
[363908278,1748921433843,-440.0,0.00016438,2]
[363908279,1748921433853,-440.0,0.00016438,2]
[363908280,1748921433862,-430.0,0.00016438,2]
[363908281,1748921433873,-440.0,0.00016438,2]
[363908282,1748921433883,-440.0,0.00016438,2]
[363908283,1748921433894,-440.0,0.00016438,2]
[363908284,1748921433904,-300.95536229,0.00016438,2]
[363908285,1748921433914,-433.32295386,0.00016438,2]
[363908286,1748921433924,-440.0,0.00016438,2]
[363908287,1748921433935,-438.27894563,0.00016438,2]
[363908288,1748921433945,-283.90510904,0.00016438,2]
[363908289,1748921433955,-430.0,0.00016438,2]
[363908290,1748921433966,-430.0,0.00016438,2]
[363908291,1748921433975,-437.37159032,0.00016438,2]
[363908292,1748921433986,-440.0,0.00016438,2]
[363908293,1748921433997,-440.0,0.00016438,2]
[363908294,1748921434007,-430.0,0.00016438,2]
[363908295,1748921434017,-440.0,0.00016438,2]
[363908296,1748921434027,-440.0,0.00016438,2]
[363908297,1748921434037,-448.0,0.00016438,2]
[363908298,1748921434048,-440.0,0.00016438,2]
[363908299,1748921434058,-440.0,0.00016438,2]
[363908300,1748921434068,-495.99391158,0.00016438,2]
[363908301,1748921434078,-440.0,0.00016438,2]
[363908302,1748921434088,-440.0,0.00016438,2]
[363908303,1748921434098,-441.32000932,0.00016438,2]
[363908304,1748921434108,-972.56,0.00016438,2]
[363908305,1748921434118,-440.0,0.00016438,2]
[363908306,1748921434128,-440.0,0.00016438,2]
[363908307,1748921434138,-440.0,0.00016438,2]
[363908308,1748921434148,-381.7123465,0.00016438,2]
[363908309,1748921434158,-588.53794833,0.00016438,2]
[363908310,1748921434168,-500.0,0.00016438,2]
[363908311,1748921434177,-687.98,0.00016438,2]
[363908312,1748921434188,-1112.44,0.00016438,2]
[363908313,1748921434197,-440.0,0.00016438,2]
[363908314,1748921434207,-440.0,0.00016438,2]
[363908315,1748921434217,-440.0,0.00016438,2]
[363908316,1748921434227,-440.0,0.00016438,2]
[363908317,1748921434237,-440.0,0.00016438,2]
[363908318,1748921434248,-440.0,0.00016438,2]
[363908319,1748921434258,-440.0,0.00016438,2]
[363908320,1748921434268,-440.0,0.00016438,2]
[363908321,1748921434277,-440.0,0.00016438,2]
[363908322,1748921434287,-440.0,0.00016438,2]
[363908323,1748921434296,-440.0,0.00016438,2]